[Event "46th GRE-chT Premier 2018"]
[Site "Rio Achaia"]
[Date "2018.07.11"]
[Round "2"]
[White "Vragoteris, Antonios"]
[Black "Pantazopoulos, Stavros"]
[Result "1/2-1/2"]
[ECO "B10"]
[WhiteElo "2160"]
[BlackElo "2153"]
[Annotator "NA"]
[PlyCount "63"]
[EventDate "2018.07.10"]
[EventType "team-tourn"]
[EventCountry "GRE"]
[SourceTitle "playchess.com"]
[Source "ChessBase"]
[SourceQuality "1"]
[TimeControl "40/5400+30:1800+30"]

1. e4 {[%emt 0:05:32]} c6 {[%emt 0:00:00]} 2. c4 {[%emt 0:02:46]} d5 {[%emt 0:00:00]} 3. cxd5 {[%emt 0:00:18]} cxd5 {[%emt 0:00:00]} 4. exd5 {[%emt 0:00:11]} Nf6 {[%emt 0:00:00]} 5. Nc3 {[%emt 0:00:25]} Nxd5 {[%emt 0:00:03]} 6. Nf3 {[%emt 0:00:38]} Nc6 {[%emt 0:00:20]} 7. Bb5 {[%emt 0:00:52]} e6 {[%emt 0:00:21]} 8. O-O {[%emt 0:01:41]} Be7 {[%emt 0:00:17]} 9. d4 {[%emt 0:00:12]} O-O {[%emt 0:00:13]} 10. Bd3 {[%emt 0:04:28]} Nf6 {[%emt 0:05:49]} 11. a3 {[%emt 0:00:37]} Qb6 {[%emt 0:12:52]} 12. Be3 {[%emt 0:21:18]} Nd5 {[%emt 0:02:52]} 13. Qe2 {[%emt 0:02:34]} Bd7 {[%emt 0:13:40]} 14. Rac1 {[%emt 0:24:47]} Rad8 {[%emt 0:16:14]} 15. b4 {[%emt 0:06:52]} a6 {[%emt 0:05:03]} 16. Na4 {[%emt 0:07:11]} Qc7 {[%emt 0:09:12]} 17. Nc5 {[%emt 0:05:03]} Bc8 {[%emt 0:01:49]} 18. Qc2 {[%emt 0:01:22]} Bxc5 {[%emt 0:11:12]} 19. Qxc5 {[%emt 0:00:35]} Qe7 {[%emt 0:08:18]} 20. Qc2 {[%emt 0:01:48]} h6 {[%emt 0:00:23]} 21. Bc4 {[%emt 0:05:18]} Qf6 {[%emt 0:01:43]} 22. Qe4 {[%emt 0:01:19]} Qe7 {[%emt 0:03:58]} 23. Ne5 {[%emt 0:02:10]} Nxe5 {[%emt 0:02:03]} 24. dxe5 {[%emt 0:00:10]} Nxe3 {[%emt 0:00:16]} 25. Qxe3 {[%emt 0:01:35]} b5 {[%emt 0:00:45]} 26. Bd3 {[%emt 0:01:06]} Bb7 {[%emt 0:00:56]} 27. Be4 {[%emt 0:00:35]} Bxe4 {[%emt 0:00:23]} 28. Qxe4 {[%emt 0:00:02]} Rd5 {[%emt 0:00:29]} 29. Rfd1 {[%emt 0:00:28]} Rxd1+ {[%emt 0:01:11]} 30. Rxd1 {[%emt 0:00:02]} Rd8 {[%emt 0:00:13]} 31. Rxd8+ {[%emt 0:01:01]} Qxd8 {[%emt 0:00:06]} 32. g3 {[%emt 0:00:13]} 1/2-1/2

[Event "46th GRE-chT Premier 2018"]
[Site "Rio Achaia"]
[Date "2018.07.11"]
[Round "2"]
[White "Markantonaki, Haritomeni"]
[Black "Makropoulou, Marina"]
[Result "1-0"]
[ECO "C42"]
[WhiteElo "2152"]
[BlackElo "2135"]
[Annotator "NA"]
[PlyCount "63"]
[EventDate "2018.07.10"]
[EventType "team-tourn"]
[EventCountry "GRE"]
[SourceTitle "playchess.com"]
[Source "ChessBase"]
[SourceQuality "1"]
[TimeControl "40/5400+30:1800+30"]

1. e4 {[%emt 0:00:00]} e5 {[%emt 0:00:00]} 2. Nf3 {[%emt 0:00:00]} Nf6 {[%emt 0:00:00]} 3. Nxe5 {[%emt 0:00:24]} Qe7 {[%emt 0:00:00]} 4. Nf3 {[%emt 0:02:40]} Qxe4+ {[%emt 0:00:29]} 5. Be2 {[%emt 0:00:13]} Bb4 {[%emt 0:00:18]} 6. c3 {[%emt 0:04:47]} Be7 {[%emt 0:04:13]} 7. O-O {[%emt 0:02:56]} O-O {[%emt 0:00:09]} 8. c4 {[%emt 0:01:41]} d5 {[%emt 0:08:45]} 9. Nc3 {[%emt 0:02:46]} Qf5 {[%emt 0:02:06]} 10. Re1 {[%emt 0:07:33]} c6 {[%emt 0:10:25]} 11. d4 {[%emt 0:02:41]} dxc4 {[%emt 0:06:07]} 12. Bxc4 {[%emt 0:00:15]} Bd6 {[%emt 0:00:34]} 13. Ne5 {[%emt 0:05:43]} Ng4 {[%emt 0:12:25]} 14. f4 {[%emt 0:04:28]} Nxe5 {[%emt 0:11:15]} 15. fxe5 {[%emt 0:03:55]} Bc7 {[%emt 0:00:06]} 16. h3 {[%emt 0:09:55]} Qg6 {[%emt 0:01:05]} 17. Qf3 {[%emt 0:00:50]} Bb6 {[%emt 0:05:34]} 18. Bd3 {[%emt 0:05:21]} Bxd4+ {[%emt 0:02:26]} 19. Kh1 {[%emt 0:01:23]} f5 {[%emt 0:00:33]} 20. exf6 {[%emt 0:10:22]} Qxf6 {[%emt 0:00:18]} 21. Qh5 {[%emt 0:02:19]} g6 {[%emt 0:07:11]} 22. Qe2 {[%emt 0:02:34]} Qf2 {[%emt 0:09:46]} 23. Bc4+ {[%emt 0:01:51]} Kh8 {[%emt 0:01:20]} 24. Bh6 {[%emt 0:08:16]} Qxe2 {[%emt 0:02:06]} 25. Rxe2 {[%emt 0:00:03]} Bg7 {[%emt 0:00:20]} 26. Bxg7+ {[%emt 0:00:38]} Kxg7 {[%emt 0:00:01]} 27. Re7+ {[%emt 0:00:12]} Kh6 {[%emt 0:01:07]} 28. g4 {[%emt 0:02:45]} Nd7 {[%emt 0:13:15]} 29. Ne4 {[%emt 0:02:15]} g5 {[%emt 0:02:03]} 30. Rd1 {[%emt 0:01:03]} Nf6 {[%emt 0:00:27]} 31. Rd6 {[%emt 0:00:13]} Kg6 {[%emt 0:00:09]} 32. Nxf6 {[%emt 0:00:19]} 1-0

[Event "46th GRE-chT Premier 2018"]
[Site "Rio Achaia"]
[Date "2018.07.11"]
[Round "2"]
[White "Richterova, Natasa"]
[Black "Prokopiou, Ekaterini"]
[Result "1/2-1/2"]
[ECO "A15"]
[WhiteElo "2146"]
[BlackElo "1661"]
[Annotator "NA"]
[PlyCount "61"]
[EventDate "2018.07.10"]
[EventType "team-tourn"]
[EventCountry "GRE"]
[SourceTitle "playchess.com"]
[Source "ChessBase"]
[SourceQuality "1"]
[TimeControl "40/5400+30:1800+30"]

1. c4 {[%emt 0:00:25]} Nf6 {[%emt 0:00:00]} 2. g3 {[%emt 0:00:09]} d5 {[%emt 0:01:26]} 3. d4 {[%emt 0:01:14]} c6 {[%emt 0:00:47]} 4. Bg2 {[%emt 0:00:28]} Bf5 {[%emt 0:01:14]} 5. Nf3 {[%emt 0:06:10]} e6 {[%emt 0:04:09]} 6. O-O {[%emt 0:00:16]} Bd6 {[%emt 0:01:27]} 7. Bg5 {[%emt 0:02:41]} Nbd7 {[%emt 0:03:09]} 8. Nh4 {[%emt 0:14:31]} Be4 {[%emt 0:18:21]} 9. Bxe4 {[%emt 0:03:55]} dxe4 {[%emt 0:00:10]} 10. Nc3 {[%emt 0:00:19]} Be7 {[%emt 0:00:31]} 11. Qc2 {[%emt 0:13:24]} h6 {[%emt 0:08:07]} 12. Be3 {[%emt 0:01:04]} Ng4 {[%emt 0:00:37]} 13. Ng2 {[%emt 0:00:20]} f5 {[%emt 0:00:44]} 14. d5 {[%emt 0:06:34]} O-O {[%emt 0:13:53]} 15. dxe6 {[%emt 0:01:41]} Nxe3 {[%emt 0:03:21]} 16. Nxe3 {[%emt 0:01:11]} Nc5 {[%emt 0:00:11]} 17. Rad1 {[%emt 0:02:09]} Qc7 {[%emt 0:00:41]} 18. b4 {[%emt 0:08:14]} Nxe6 {[%emt 0:00:27]} 19. c5 {[%emt 0:00:08]} Kh8 {[%emt 0:10:02]} 20. Ncd5 {[%emt 0:18:52]} cxd5 {[%emt 0:06:48]} 21. Nxd5 {[%emt 0:00:10]} Qe5 {[%emt 0:00:12]} 22. Nxe7 {[%emt 0:00:05]} Qf6 {[%emt 0:00:07]} 23. Rd7 {[%emt 0:07:16]} Rad8 {[%emt 0:02:24]} 24. Rfd1 {[%emt 0:06:19]} Rxd7 {[%emt 0:00:57]} 25. Rxd7 {[%emt 0:00:03]} f4 {[%emt 0:00:31]} 26. Qxe4 {[%emt 0:02:22]} fxg3 {[%emt 0:00:16]} 27. Ng6+ {[%emt 0:01:16]} Kg8 {[%emt 0:00:44]} 28. Ne7+ {[%emt 0:00:02]} Kh8 {[%emt 0:00:11]} 29. Ng6+ {[%emt 0:02:18]} Kg8 {[%emt 0:00:06]} 30. Ne7+ {[%emt 0:00:11]} Kh8 {[%emt 0:00:07]} 31. Ng6+ {[%emt 0:00:56]} 1/2-1/2

[Event "46th GRE-chT Premier 2018"]
[Site "Rio Achaia"]
[Date "2018.07.11"]
[Round "2"]
[White "Petrakis, Ilias"]
[Black "Galanakis, Nikolaos"]
[Result "1-0"]
[ECO "C61"]
[WhiteElo "2118"]
[BlackElo "1579"]
[Annotator "NA"]
[PlyCount "63"]
[EventDate "2018.07.10"]
[EventType "team-tourn"]
[EventCountry "GRE"]
[SourceTitle "playchess.com"]
[Source "ChessBase"]
[SourceQuality "1"]
[TimeControl "40/5400+30:1800+30"]

1. e4 {[%emt 0:00:00]} e5 {[%emt 0:00:00]} 2. Nf3 {[%emt 0:00:00]} Nc6 {[%emt 0:00:00]} 3. Bb5 {[%emt 0:00:19]} Nd4 {[%emt 0:00:00]} 4. Nxd4 {[%emt 0:01:55]} exd4 {[%emt 0:00:00]} 5. O-O {[%emt 0:00:09]} c6 {[%emt 0:00:13]} 6. Ba4 {[%emt 0:01:08]} d6 {[%emt 0:02:50]} 7. c3 {[%emt 0:02:48]} dxc3 {[%emt 0:08:25]} 8. Nxc3 {[%emt 0:02:54]} Nf6 {[%emt 0:00:41]} 9. d4 {[%emt 0:00:12]} g6 {[%emt 0:05:25]} 10. Bg5 {[%emt 0:01:08]} Bg7 {[%emt 0:00:34]} 11. Qf3 {[%emt 0:10:08]} h6 {[%emt 0:00:29]} 12. Bh4 {[%emt 0:00:12]} g5 {[%emt 0:02:11]} 13. Bg3 {[%emt 0:00:31]} O-O {[%emt 0:07:14]} 14. e5 {[%emt 0:02:23]} g4 {[%emt 0:10:11]} 15. Qd3 {[%emt 0:00:53]} dxe5 {[%emt 0:03:59]} 16. Bxe5 {[%emt 0:06:05]} Re8 {[%emt 0:01:03]} 17. Bc2 {[%emt 0:00:47]} Rxe5 {[%emt 0:02:59]} 18. dxe5 {[%emt 0:00:06]} Qxd3 {[%emt 0:00:03]} 19. Bxd3 {[%emt 0:00:07]} Nd7 {[%emt 0:00:23]} 20. e6 {[%emt 0:01:11]} fxe6 {[%emt 0:01:40]} 21. Rad1 {[%emt 0:02:27]} Ne5 {[%emt 0:02:34]} 22. Be2 {[%emt 0:01:08]} b6 {[%emt 0:00:24]} 23. Rd8+ {[%emt 0:01:38]} Kf7 {[%emt 0:00:21]} 24. Ba6 {[%emt 0:05:25]} Bxa6 {[%emt 0:02:04]} 25. Rxa8 {[%emt 0:00:05]} Bxf1 {[%emt 0:00:04]} 26. Rxa7+ {[%emt 0:00:06]} Kg6 {[%emt 0:00:29]} 27. Kxf1 {[%emt 0:00:10]} Nc4 {[%emt 0:00:59]} 28. Nd1 {[%emt 0:00:18]} Bxb2 {[%emt 0:01:46]} 29. Ra4 {[%emt 0:01:33]} b5 {[%emt 0:00:52]} 30. Rxc4 {[%emt 0:00:08]} bxc4 {[%emt 0:00:03]} 31. Nxb2 {[%emt 0:00:05]} c3 {[%emt 0:00:14]} 32. Nd3 {[%emt 0:00:05]} 1-0

[Event "46th GRE-chT Premier 2018"]
[Site "Rio Achaia"]
[Date "2018.07.11"]
[Round "2"]
[White "Samaridis, Konstantinos"]
[Black "Michaelides, Konstantinos"]
[Result "0-1"]
[ECO "E59"]
[WhiteElo "2103"]
[BlackElo "2282"]
[Annotator "ChessBase"]
[PlyCount "254"]
[EventDate "2018.07.10"]
[EventType "team-tourn"]
[EventCountry "GRE"]
[SourceTitle "playchess.com"]
[Source "ChessBase"]
[SourceQuality "1"]
[TimeControl "40/5400+30:1800+30"]

1. d4 {[%emt 0:00:00]} Nf6 {[%emt 0:00:00]} 2. c4 {[%emt 0:00:00]} e6 {[%emt 0:00:06]} 3. Nc3 {[%emt 0:00:00]} Bb4 {[%emt 0:00:28]} 4. e3 {[%emt 0:00:01]} O-O {[%emt 0:00:31]} 5. Bd3 {[%emt 0:00:06]} d5 {[%emt 0:00:41]} 6. Nf3 {[%emt 0:00:07]} c5 {[%emt 0:00:35]} 7. O-O {[%emt 0:00:07]} Nc6 {[%emt 0:00:32]} 8. a3 {[%emt 0:03:01]} Bxc3 {[%emt 0:00:29]} 9. bxc3 {[%emt 0:00:07]} dxc4 {[%emt 0:00:35]} 10. Bxc4 {[%emt 0:00:29]} Qc7 {[%emt 0:00:05]} 11. Qe2 {[%emt 0:09:20]} e5 {[%emt 0:00:56]} 12. h3 {[%emt 0:02:01]} e4 {[%emt 0:06:08]} 13. Nd2 {[%emt 0:02:33]} Bf5 {[%emt 0:02:19]} 14. f4 {[%emt 0:11:33]} exf3 {[%emt 0:01:34]} 15. Qxf3 {[%emt 0:00:25]} Bg6 {[%emt 0:00:50]} 16. Bb2 {[%emt 0:09:26]} Qb6 {[%emt 0:11:43]} 17. Ra2 {[%emt 0:09:53]} Na5 {[%emt 0:05:11]} 18. Be2 {[%emt 0:01:54]} Rfe8 {[%emt 0:02:46]} 19. c4 {[%emt 0:09:07]} Qe6 {[%emt 0:06:38]} 20. dxc5 {[%emt 0:01:26]} Nd7 {[%emt 0:11:02]} 21. Bd4 {[%emt 0:05:37]} Nc6 {[%emt 0:01:00]} 22. Nb3 {[%emt 0:05:29]} Be4 {[%emt 0:04:31]} 23. Qg3 {[%emt 0:03:48]} f6 {[%emt 0:00:43]} 24. Bg4 {[%emt 0:01:30]} Qxc4 {[%emt 0:02:28]} 25. Bxd7 {[%emt 0:08:34]} Qxb3 {[%emt 0:06:52]} 26. Bxf6 {[%emt 0:03:26]} Bg6 {[%emt 0:01:06]} 27. Bxe8 {[%emt 0:05:52]} Rxe8 {[%emt 0:01:50]} 28. Rb2 {[%emt 0:00:40]} Qxa3 {[%emt 0:00:19]} 29. Bxg7 {[%emt 0:00:38]} Kxg7 {[%emt 0:01:53]} 30. Rxb7+ {[%emt 0:00:06]} Kg8 {[%emt 0:01:10]} 31. Qc7 {[%emt 0:02:39]} Qxe3+ {[%emt 0:00:30]} 32. Kh1 {[%emt 0:00:03]} Ne7 {[%emt 0:00:41]} 33. Rb8 {[%emt 0:04:26]} Nf5 {[%emt 0:07:58]} 34. Rxe8+ {[%emt 0:00:24]} Qxe8 {[%emt 0:00:13]} 35. c6 {[%emt 0:01:09]} Nd4 {[%emt 0:06:21]} 36. Qxa7 {[%emt 0:01:18]} Nxc6 {[%emt 0:00:35]} 37. Qc5 {[%emt 0:00:42]} Nd8 {[%emt 0:01:21]} 38. Qd5+ {[%emt 0:00:13]} Nf7 {[%emt 0:01:33]} 39. Ra1 {[%emt 0:00:44]} Be4 {[%emt 0:01:34]} 40. Qd4 {[%emt 0:00:00]} Qc6 {[%emt 0:00:00]} 41. Rg1 {[%emt 0:09:33]} Nd6 {[%emt 0:08:50]} 42. Qf6 {[%emt 0:01:50]} Qd5 {[%emt 0:02:02]} 43. Kh2 {[%emt 0:03:06]} Nf5 {[%emt 0:04:17]} 44. Qg5+ {[%emt 0:04:23]} Kf7 {[%emt 0:02:39]} 45. Rf1 {[%emt 0:02:03]} Qd6+ {[%emt 0:02:45]} 46. Qf4 {[%emt 0:00:30]} Kg6 {[%emt 0:02:18]} 47. g4 {[%emt 0:01:12]} Qxf4+ {[%emt 0:00:51]} 48. Rxf4 {[%emt 0:00:02]} Nd6 {[%emt 0:00:07]} 49. h4 {[%emt 0:00:36]} h6 {[%emt 0:01:14]} 50. Kg3 {[%emt 0:00:46]} Kg7 {[%emt 0:02:06]} 51. Rf1 {[%emt 0:01:09]} Nf7 {[%emt 0:01:18]} 52. Kf4 {[%emt 0:00:31]} Bg6 {[%emt 0:01:06]} 53. Rd1 {[%emt 0:00:35]} Bc2 {[%emt 0:00:48]} 54. Rc1 {[%emt 0:00:09]} Bd3 {[%emt 0:00:11]} 55. Ke3 {[%emt 0:00:29]} Bb5 {[%emt 0:00:31]} 56. Ke4 {[%emt 0:01:18]} Bd7 {[%emt 0:00:35]} 57. Kf4 {[%emt 0:00:25]} Bb5 {[%emt 0:00:25]} 58. Rc7 {[%emt 0:00:27]} Be2 {[%emt 0:00:48]} 59. Kf5 {[%emt 0:00:32]} Bd1 {[%emt 0:01:05]} 60. Rc6 {[%emt 0:03:03]} Bxg4+ {[%emt 0:01:19]} 61. Kf4 {[%emt 0:01:34]} Bd7 {[%emt 0:01:48]} 62. Rb6 {[%emt 0:00:29]} Kf8 {[%emt 0:00:29]} 63. Rg6 {[%emt 0:02:19]} Ke7 {[%emt 0:00:15]} 64. Ra6 {[%emt 0:01:50]} Be6 {[%emt 0:00:25]} 65. Ra7+ {[%emt 0:00:34]} Kf6 {[%emt 0:00:12]} 66. Ra6 {[%emt 0:00:13]} Nh8 {[%emt 0:00:34]} 67. Ra5 {[%emt 0:02:03]} Ng6+ {[%emt 0:00:20]} 68. Kg3 {[%emt 0:00:12]} Ne7 {[%emt 0:01:17]} 69. Kf4 {[%emt 0:01:06]} Nf5 {[%emt 0:00:12]} 70. h5 {[%emt 0:00:09]} Ne7 {[%emt 0:01:04]} 71. Kg3 {[%emt 0:00:23]} Nd5 {[%emt 0:01:18]} 72. Kh4 {[%emt 0:00:50]} Kf5 {[%emt 0:00:51]} 73. Ra6 {[%emt 0:00:51]} Nf4 {[%emt 0:00:55]} 74. Ra5+ {[%emt 0:00:12]} Ke4 {[%emt 0:00:39]} 75. Ra4+ {[%emt 0:00:09]} Kf5 {[%emt 0:00:25]} 76. Ra5+ {[%emt 0:00:06]} Kf6 {[%emt 0:01:31]} 77. Ra6 {[%emt 0:00:34]} Ng2+ {[%emt 0:01:15]} 78. Kg3 {[%emt 0:00:11]} Ne3 {[%emt 0:00:09]} 79. Ra5 {[%emt 0:01:01]} Nf5+ {[%emt 0:00:32]} 80. Kf4 {[%emt 0:00:09]} Ng7 {[%emt 0:00:08]} 81. Kg3 {[%emt 0:00:14]} Bf7 {[%emt 0:01:44]} 82. Kg4 {[%emt 0:00:56]} Bc4 {[%emt 0:01:06]} 83. Kf3 {[%emt 0:02:16]} Bd3 {[%emt 0:02:09]} 84. Kg3 {[%emt 0:01:12]} Be2 {[%emt 0:00:32]} 85. Kf4 {[%emt 0:00:35]} Bxh5 {[%emt 0:00:35]} 86. Ra6+ {[%emt 0:00:13]} Ne6+ {[%emt 0:00:05]} 87. Kg3 {[%emt 0:00:07]} Be2 {[%emt 0:00:51]} 88. Ra8 {[%emt 0:00:19]} Ng7 {[%emt 0:01:59]} 89. Rf8+ {[%emt 0:00:43]} Kg6 {[%emt 0:00:54]} 90. Rb8 {[%emt 0:00:32]} Bc4 {[%emt 0:00:38]} 91. Rb4 {[%emt 0:00:29]} Bd5 {[%emt 0:01:05]} 92. Rg4+ {[%emt 0:00:16]} Kf6 {[%emt 0:00:19]} 93. Ra4 {[%emt 0:00:50]} Be6 {[%emt 0:00:41]} 94. Rb4 {[%emt 0:00:51]} Kg5 {[%emt 0:00:09]} 95. Ra4 {[%emt 0:00:29]} Nf5+ {[%emt 0:00:14]} 96. Kh3 {[%emt 0:00:48]} h5 {[%emt 0:01:26]} 97. Ra5 {[%emt 0:00:19]} Bc4 {[%emt 0:00:15]} 98. Re5 {[%emt 0:00:45]} Bf1+ {[%emt 0:00:05]} 99. Kh2 {[%emt 0:00:05]} Kf4 {[%emt 0:00:16]} 100. Ra5 {[%emt 0:00:30]} Be2 {[%emt 0:01:00]} 101. Ra4+ {[%emt 0:00:17]} Kg5 {[%emt 0:00:25]} 102. Rb4 {[%emt 0:00:39]} Bg4 {[%emt 0:00:15]} 103. Ra4 {[%emt 0:00:14]} Nd6 {[%emt 0:01:03]} 104. Rd4 {[%emt 0:00:28]} Nf5 {[%emt 0:00:40]} 105. Ra4 {[%emt 0:00:09]} Ne3 {[%emt 0:00:09]} 106. Ra8 {[%emt 0:00:58]} Kf4 {[%emt 0:00:14]} 107. Rf8+ {[%emt 0:00:08]} Bf5 {[%emt 0:01:04]} 108. Rh8 {[%emt 0:00:08]} Kg4 {[%emt 0:01:01]} 109. Rg8+ {[%emt 0:00:12]} Kf3 {[%emt 0:00:31]} 110. Rf8 {[%emt 0:00:22]} h4 {[%emt 0:02:52]} 111. Rh8 {[%emt 0:00:51]} Kg4 {[%emt 0:01:25]} 112. Rg8+ {[%emt 0:00:04]} Kf4 {[%emt 0:00:20]} 113. Rh8 {[%emt 0:00:04]} Ng4+ {[%emt 0:00:49]} 114. Kh3 {[%emt 0:01:19]} Ne5+ {[%emt 0:00:05]} 115. Kh2 {[%emt 0:00:17]} Nf3+ {[%emt 0:00:30]} 116. Kg2 {[%emt 0:00:20]} Kg4 {[%emt 0:00:25]} 117. Rg8+ {[%emt 0:00:28]} Ng5 {[%emt 0:00:09]} 118. Kh2 {[%emt 0:00:42]} Kf4 {[%emt 0:00:52]} 119. Rh8 {[%emt 0:00:22]} Kg4 {[%emt 0:00:49]} 120. Rg8 {[%emt 0:00:36]} h3 {[%emt 0:00:26]} 121. Rg7 {[%emt 0:00:14]} Kf4 {[%emt 0:00:18]} 122. Ra7 {[%emt 0:02:02]} Nf3+ {[%emt 0:00:28]} 123. Kh1 {[%emt 0:00:03]} Kg3 {[%emt 0:02:37]} 124. Rg7+ {[%emt 0:00:44]} Kf2 {[%emt 0:00:19]} 125. Ra7 {[%emt 0:01:18]} Be4 {[%emt 0:00:47]} 126. Rf7 {[%emt 0:00:28]} Kg3 {[%emt 0:00:15]} 127. Rh7 {[%emt 0:00:31]} Ng5+ {[%emt 0:00:09]} 0-1

[Event "46th GRE-chT Premier 2018"]
[Site "Rio Achaia"]
[Date "2018.07.11"]
[Round "2"]
[White "Stefan, Victor"]
[Black "Betsakos, Konstantinos"]
[Result "1/2-1/2"]
[ECO "B47"]
[WhiteElo "2102"]
[BlackElo "1913"]
[Annotator "NA"]
[PlyCount "67"]
[EventDate "2018.07.10"]
[EventType "team-tourn"]
[EventCountry "GRE"]
[SourceTitle "playchess.com"]
[Source "ChessBase"]
[SourceQuality "1"]
[TimeControl "40/5400+30:1800+30"]

1. e4 {[%emt 0:00:00]} c5 {[%emt 0:00:00]} 2. Nf3 {[%emt 0:00:00]} e6 {[%emt 0:00:00]} 3. d4 {[%emt 0:00:00]} cxd4 {[%emt 0:00:00]} 4. Nxd4 {[%emt 0:00:00]} Nc6 {[%emt 0:00:02]} 5. Nc3 {[%emt 0:00:00]} Qc7 {[%emt 0:00:25]} 6. f4 {[%emt 0:00:03]} a6 {[%emt 0:00:28]} 7. Nxc6 {[%emt 0:00:07]} Qxc6 {[%emt 0:00:56]} 8. Bd3 {[%emt 0:00:15]} b5 {[%emt 0:04:58]} 9. Qe2 {[%emt 0:00:12]} Bb7 {[%emt 0:05:10]} 10. Bd2 {[%emt 0:00:08]} Bc5 {[%emt 0:08:08]} 11. O-O-O {[%emt 0:00:49]} Ne7 {[%emt 0:01:52]} 12. a3 {[%emt 0:02:48]} h5 {[%emt 0:11:27]} 13. Rhf1 {[%emt 0:09:18]} O-O-O {[%emt 0:08:25]} 14. Kb1 {[%emt 0:19:31]} f5 {[%emt 0:21:03]} 15. g3 {[%emt 0:05:08]} g6 {[%emt 0:08:42]} 16. Rfe1 {[%emt 0:20:56]} Kb8 {[%emt 0:13:35]} 17. Na2 {[%emt 0:17:37]} d5 {[%emt 0:10:35]} 18. exf5 {[%emt 0:01:03]} exf5 {[%emt 0:00:24]} 19. Nb4 {[%emt 0:03:01]} Qb6 {[%emt 0:01:58]} 20. Qe6 {[%emt 0:02:57]} Nc8 {[%emt 0:01:14]} 21. Qxb6 {[%emt 0:10:15]} Bxb6 {[%emt 0:00:29]} 22. Re6 {[%emt 0:00:15]} Rhg8 {[%emt 0:00:36]} 23. Rde1 {[%emt 0:00:39]} Kc7 {[%emt 0:00:30]} 24. Bf1 {[%emt 0:01:33]} Nd6 {[%emt 0:00:27]} 25. Be3 {[%emt 0:04:47]} d4 {[%emt 0:00:31]} 26. Bg1 {[%emt 0:00:24]} Ne4 {[%emt 0:00:32]} 27. c3 {[%emt 0:00:45]} a5 {[%emt 0:00:31]} 28. Nc2 {[%emt 0:00:34]} Nd2+ {[%emt 0:00:25]} 29. Kc1 {[%emt 0:00:20]} Nb3+ {[%emt 0:00:19]} 30. Kb1 {[%emt 0:00:09]} Nd2+ {[%emt 0:00:06]} 31. Ka1 {[%emt 0:00:37]} Nb3+ {[%emt 0:01:06]} 32. Kb1 {[%emt 0:01:11]} Nd2+ {[%emt 0:00:22]} 33. Kc1 {[%emt 0:00:29]} Nb3+ {[%emt 0:00:08]} 34. Kb1 {[%emt 0:00:22]} 1/2-1/2

[Event "46th GRE-chT Premier 2018"]
[Site "Rio Achaia"]
[Date "2018.07.11"]
[Round "2"]
[White "Mihopoulos, Konstantinos"]
[Black "Liodakis, Konstantinos-Spyros"]
[Result "1-0"]
[ECO "B43"]
[WhiteElo "2097"]
[BlackElo "2183"]
[Annotator "NA"]
[PlyCount "76"]
[EventDate "2018.07.10"]
[EventType "team-tourn"]
[EventCountry "GRE"]
[SourceTitle "playchess.com"]
[Source "ChessBase"]
[SourceQuality "1"]
[TimeControl "40/5400+30:1800+30"]

1. d4 {[%emt 0:04:40]} e6 {[%emt 0:00:00]} 2. Nf3 {[%emt 0:00:14]} c5 {[%emt 0:00:11]} 3. e4 {[%emt 0:01:54]} cxd4 {[%emt 0:00:09]} 4. Nxd4 {[%emt 0:00:05]} a6 {[%emt 0:00:10]} 5. Nc3 {[%emt 0:04:13]} b5 {[%emt 0:03:10]} 6. Bd3 {[%emt 0:04:43]} Bb7 {[%emt 0:02:03]} 7. O-O {[%emt 0:00:27]} d6 {[%emt 0:09:19]} 8. Be3 {[%emt 0:05:02]} Nf6 {[%emt 0:00:18]} 9. a3 {[%emt 0:00:33]} Be7 {[%emt 0:00:42]} 10. f4 {[%emt 0:01:21]} Nbd7 {[%emt 0:06:07]} 11. Kh1 {[%emt 0:03:09]} Qc7 {[%emt 0:06:26]} 12. Qe2 {[%emt 0:06:25]} Rc8 {[%emt 0:04:58]} 13. Rf3 {[%emt 0:05:27]} Qb8 {[%emt 0:08:46]} 14. Rg3 {[%emt 0:01:40]} g6 {[%emt 0:00:22]} 15. Bd2 {[%emt 0:10:08]} Nc5 {[%emt 0:15:40]} 16. Rf1 {[%emt 0:05:26]} Qa8 {[%emt 0:05:06]} 17. e5 {[%emt 0:03:02]} Nh5 {[%emt 0:01:20]} 18. Rh3 {[%emt 0:00:20]} dxe5 {[%emt 0:08:42]} 19. fxe5 {[%emt 0:00:09]} Ng7 {[%emt 0:00:16]} 20. Bh6 {[%emt 0:07:10]} Nf5 {[%emt 0:00:30]} 21. Bxf5 {[%emt 0:02:01]} gxf5 {[%emt 0:00:07]} 22. Rg3 {[%emt 0:00:20]} Rd8 {[%emt 0:09:11]} 23. Nb3 {[%emt 0:07:08]} Ne4 {[%emt 0:02:16]} 24. Nxe4 {[%emt 0:01:38]} Bxe4 {[%emt 0:00:02]} 25. Qh5 {[%emt 0:03:49]} Qd5 {[%emt 0:03:16]} 26. Nc1 {[%emt 0:07:03]} Bxc2 {[%emt 0:03:47]} 27. Ne2 {[%emt 0:02:22]} Bd1 {[%emt 0:04:36]} 28. Rg7 {[%emt 0:02:51]} Rf8 {[%emt 0:00:29]} 29. Rxh7 {[%emt 0:00:26]} Bxe2 {[%emt 0:00:10]} 30. Qxe2 {[%emt 0:00:05]} Rg8 {[%emt 0:00:05]} 31. Rg7 {[%emt 0:01:19]} Rxg7 {[%emt 0:00:21]} 32. Bxg7 {[%emt 0:00:02]} Qd3 {[%emt 0:02:25]} 33. Qe1 {[%emt 0:02:48]} Rd4 {[%emt 0:01:57]} 34. h3 {[%emt 0:01:17]} Bg5 {[%emt 0:02:14]} 35. Bf6 {[%emt 0:02:12]} Bd2 {[%emt 0:00:31]} 36. Qd1 {[%emt 0:00:28]} Qc4 {[%emt 0:01:35]} 37. Qf3 {[%emt 0:00:30]} Re4 {[%emt 0:00:30]} 38. Rd1 {[%emt 0:02:58]} Bf4 1-0